bitfinex-derivatives/quotes_SOLF0:USTF0_20241009
["timestamp","ask_amount","ask_price","bid_price","bid_amount"]
[1728479952102,2.8465,141.58,141.54,3.535]
[1728479952103,3.5345,141.57,141.54,3.535]
[1728479953004,8.6065,141.58,141.5,22.73]
[1728479953199,12.1408,141.58,141.55,3.5349]
[1728479953405,12.1408,141.58,141.5,5.76]
[1728479953406,0.12502,141.59,141.54,16.97]
[1728479953709,3.65892,141.59,141.56,3.5346]
[1728479954205,0.12502,141.59,141.54,16.97]
[1728479954898,0.12502,141.59,141.57,3.5343]
[1728479955214,3.65892,141.59,141.54,16.97]
[1728479955399,0.12502,141.59,141.57,3.5344]
[1728479955906,0.12502,141.59,141.54,22.73]
[1728479956702,0.12502,141.59,141.55,3.5348]
[1728479957305,0.12502,141.59,141.54,3.535]
[1728479957899,3.5345,141.57,141.54,3.535]
[1728479958301,0.12502,141.59,141.53,3.5354]
[1728479958505,17.09502,141.59,141.51,5.76]
[1728479958705,1.3236,141.58,141.51,5.76]
[1728479958906,5.76,141.57,141.52,3.5355]
[1728479959110,3.5348,141.56,141.51,5.76]
[1728479959709,3.5348,141.56,141.52,3.5355]
[1728479961012,5.76,141.57,141.52,3.5355]
[1728479961213,3.535,141.55,141.52,3.5355]
[1728479962708,3.535,141.55,141.51,5.76]
[1728479962902,5.76,141.57,141.53,3.5354]
[1728479963111,3.5349,141.56,141.53,3.5354]
[1728479963413,3.5349,141.56,141.53,3.5352]
[1728479963907,3.535,141.55,141.53,3.5352]
[1728479964103,5.76,141.57,141.53,3.5352]
[1728479964811,5.76,141.57,141.52,3.5355]
[1728479965003,5.76,141.57,141.52,16.97]
[1728479965206,3.5345,141.57,141.52,16.97]
[1728479965503,2.7508,141.58,141.56,3.5347]
[1728479965714,3.65902,141.59,141.52,16.97]
[1728479966112,3.65902,141.59,141.57,3.5343]
[1728479967912,3.65902,141.59,141.56,3.5345]
[1728479968114,17.09502,141.59,141.5,16.97]
[1728479968315,17.09502,141.59,141.5,22.73]
[1728479968612,1.3861,141.58,141.52,3.5356]
[1728479968808,3.5351,141.55,141.52,3.5356]
[1728479969418,1.3861,141.58,141.5,22.73]
[1728479970014,3.5347,141.57,141.54,3.535]
[1728479970214,1.3861,141.58,141.54,3.535]
[1728479970414,1.3861,141.58,141.5,22.73]
[1728479971215,3.5349,141.56,141.53,3.5353]
[1728479971421,3.5349,141.56,141.5,22.73]
[1728479973015,3.5349,141.55,141.53,3.5353]
[1728479973920,3.5348,141.56,141.54,3.5352]
[1728479975637,3.5349,141.55,141.53,3.5353]
[1728479978045,20.55277066,141.57,141.48,16.97]
[1728479978340,16.97,141.55,141.47,0.12502]
[1728479978537,10.86,141.51,141.47,0.12502]
[1728479978729,10.86,141.51,141.47,3.66172]
[1728479978730,3.5363,141.5,141.47,3.66172]
[1728479978942,10.86,141.5,141.47,0.12502]
[1728479979238,10.86,141.49,141.47,0.12502]
[1728479979441,3.5367,141.48,141.47,0.12502]
[1728479982041,10.86,141.48,141.41,16.74502]
[1728479982237,3.5376,141.45,141.42,3.5381]
[1728479982842,22.74,141.48,141.41,0.12502]
[1728479983041,16.98,141.46,141.41,0.12502]
[1728479983439,3.5382,141.42,141.41,0.12502]
[1728479985339,1.4224,141.43,141.35,22.86502]
[1728479985542,3.5389,141.4,141.37,3.5392]
[1728479985930,3.5387,141.4,141.36,3.5394]
[1728479986138,3.5387,141.4,141.35,5.88502]
[1728479986537,16.98,141.42,141.35,5.88502]
[1728479987039,3.539,141.39,141.36,3.5396]
[1728479987338,16.98,141.4,141.35,0.12502]
[1728479987548,22.74,141.4,141.35,0.12502]
[1728479988147,16.98,141.39,141.35,0.12502]
[1728479988341,3.5397,141.36,141.35,0.12502]
[1728479990142,16.98,141.39,141.35,0.12502]
[1728479990346,3.5392,141.38,141.35,3.66492]
[1728479990543,9.2992,141.38,141.35,3.66492]
[1728479990843,1.3289,141.39,141.35,0.12502]
[1728479991144,3.5388,141.4,141.35,0.12502]
[1728479991344,5.76,141.41,141.35,17.10502]
[1728479991544,9.2986,141.41,141.38,3.5391]
[1728479991745,5.76,141.41,141.35,17.10502]
[1728479992145,3.5387,141.4,141.37,3.5392]
[1728479993348,3.5389,141.39,141.36,3.5396]
[1728479993540,5.76,141.41,141.35,0.12502]
[1728479994448,3.5391,141.39,141.36,3.5396]
[1728479994649,5.76,141.41,141.35,0.12502]
[1728479994949,1.3903,141.4,141.35,0.12502]
[1728479995154,16.98,141.39,141.35,0.12502]
[1728479995342,1.3903,141.4,141.35,0.12502]
[1728479995653,3.5397,141.36,141.35,0.12502]
[1728479996248,3.5407,141.33,141.3,3.541]
[1728479996452,16.98,141.35,141.29,52.03696965]
[1728479996648,16.98,141.35,141.29,0.12502]
[1728479996844,3.5409,141.31,141.29,0.12502]
[1728479997349,16.98,141.35,141.29,0.12502]
[1728479998056,16.98,141.33,141.29,0.12502]
[1728479998247,16.98,141.31,141.29,0.12502]
[1728479999442,3.5412,141.3,141.29,0.12502]
[1728480000657,22.74,141.33,141.29,0.12502]
[1728480001452,1.4334,141.32,141.29,0.12502]
[1728480001656,3.5412,141.3,141.29,0.12502]
[1728480002746,3.541,141.31,141.29,0.12502]
[1728480003952,3.5412,141.3,141.29,0.12502]
[1728480004549,3.5411,141.31,141.29,0.12502]
[1728480004759,7.1934,141.32,141.29,0.12502]
[1728480005258,16.98,141.33,141.29,0.12502]
[1728480005259,5.76,141.33,141.29,0.12502]
[1728480005456,2.8289,141.36,141.29,0.12502]
[1728480005457,1.422,141.36,141.29,0.12502]
[1728480005660,7.182,141.36,141.3,16.98]
[1728480006254,3.5402,141.34,141.31,3.5409]
[1728480006760,3.5402,141.34,141.29,22.86502]
[1728480007550,3.54,141.35,141.32,3.5405]
[1728480008164,10.7218,141.36,141.33,3.5403]
[1728480008353,9.2998,141.36,141.3,16.98]
[1728480008551,3.5398,141.36,141.3,16.98]
[1728480008750,3.5398,141.36,141.33,3.5403]
[1728480009251,4.1906,141.4,141.32,16.98]
[1728480009454,4.1906,141.4,141.34,16.98]
[1728480009754,2.7497,141.4,141.34,16.98]
[1728480009957,6.2885,141.4,141.37,3.5393]
[1728480010260,3.5388,141.4,141.34,16.98]
[1728480010451,5.88502,141.41,141.34,16.98]
[1728480010650,9.42362,141.41,141.38,3.5391]
[1728480010853,5.88502,141.41,141.34,16.98]
[1728480011359,3.5389,141.39,141.36,3.5396]
[1728480011657,5.88502,141.41,141.34,16.98]
[1728480012557,5.88502,141.41,141.34,5.76]
[1728480013358,3.5391,141.39,141.36,3.5396]
[1728480014760,3.5391,141.39,141.34,5.76]
[1728480014952,3.5388,141.4,141.37,3.5394]
[1728480015256,22.86502,141.41,141.29,0.12502]
[1728480015454,16.98,141.39,141.33,3.5404]
[1728480015861,16.98,141.37,141.32,3.5406]
[1728480016161,22.74,141.37,141.32,3.5406]
[1728480016962,3.5401,141.35,141.31,3.5408]
[1728480017161,3.5401,141.35,141.3,5.76]
[1728480017563,3.5404,141.34,141.3,5.76]
[1728480017762,16.98,141.35,141.29,0.12502]
[1728480018963,3.5405,141.33,141.29,0.12502]
[1728480019260,16.98,141.35,141.29,0.12502]
[1728480019570,3.5412,141.3,141.29,0.12502]
[1728480020058,16.98,141.3,141.24,3.5425]
[1728480020249,1.4238,141.32,141.25,16.98]
[1728480020653,1.4238,141.32,141.27,3.5419]
[1728480020850,1.4238,141.32,141.25,16.98]
[1728480021268,1.4238,141.32,141.27,3.5419]
[1728480021461,3.5412,141.3,141.25,16.98]
[1728480021656,18.4038,141.32,141.24,5.76]
[1728480021862,18.4038,141.32,141.26,3.542]
[1728480022065,1.4238,141.32,141.24,5.76]
[1728480022363,1.4238,141.32,141.28,3.5415]
[1728480022765,3.5411,141.31,141.28,3.5415]
[1728480023163,1.4238,141.32,141.25,16.98]
[1728480023667,5.76,141.33,141.25,16.98]
[1728480023972,9.3006,141.33,141.25,16.98]
[1728480024362,9.3006,141.33,141.29,3.5412]
[1728480025052,9.3006,141.33,141.25,16.98]
[1728480025257,9.3006,141.33,141.3,3.5411]
[1728480025667,5.76,141.33,141.28,3.5415]
[1728480026358,3.5411,141.31,141.28,3.5415]
[1728480027162,0.12502,141.35,141.27,16.98]
[1728480027365,3.5406,141.33,141.27,16.98]
[1728480028063,3.5406,141.33,141.31,3.5408]
[1728480028365,9.3002,141.34,141.31,3.5408]
[1728480028562,5.76,141.34,141.31,3.5408]
[1728480028766,3.5405,141.33,141.27,16.98]
[1728480029166,3.5407,141.32,141.29,3.5412]
[1728480029367,3.5407,141.32,141.27,16.98]
[1728480029667,5.76,141.34,141.27,16.98]
[1728480029859,3.5406,141.33,141.3,3.541]
[1728480030054,0.12502,141.35,141.27,16.98]
[1728480030267,0.12502,141.35,141.33,3.5403]
[1728480031563,3.5402,141.34,141.32,3.5405]
[1728480032771,0.12502,141.35,141.32,3.5405]
[1728480032972,3.66502,141.35,141.32,3.5405]
[1728480033467,0.12502,141.35,141.33,3.5402]
[1728480034870,0.12502,141.35,141.28,22.74]
[1728480035066,3.66512,141.35,141.32,3.5406]
[1728480035263,0.12502,141.35,141.32,3.5406]
[1728480035869,3.5402,141.34,141.32,3.5406]
[1728480036366,0.12502,141.35,141.32,3.5406]
[1728480036573,0.12502,141.35,141.3,3.541]
[1728480036768,0.12502,141.35,141.28,5.76]
[1728480037071,3.5408,141.32,141.29,3.5412]
[1728480037672,3.5406,141.33,141.31,3.5409]
[1728480038878,3.5403,141.34,141.31,3.5409]
[1728480039265,3.66502,141.35,141.28,5.76]
[1728480040569,3.66502,141.35,141.32,3.5405]
[1728480040875,0.12502,141.35,141.31,16.98]
[1728480041065,0.12502,141.35,141.34,3.5402]
[1728480045380,1.3959,141.4,141.33,22.74]
[1728480045770,3.5393,141.38,141.35,3.5398]
[1728480046170,1.3959,141.4,141.35,3.5398]
[1728480047071,3.5394,141.38,141.35,3.5398]
[1728480047281,1.3959,141.4,141.35,3.5398]
[1728480047479,3.5398,141.36,141.34,3.5401]
[1728480048484,3.5396,141.37,141.34,3.5401]
[1728480049583,3.5393,141.38,141.33,5.76]
[1728480049774,1.3959,141.4,141.33,5.76]
[1728480049976,1.3959,141.4,141.33,22.74]
[1728480050278,1.3959,141.4,141.38,3.539]
[1728480051284,4.9347,141.4,141.38,3.539]
[1728480054280,3.5388,141.4,141.38,3.539]
[1728480054778,3.66362,141.41,141.39,3.5388]
[1728480056387,0.12502,141.41,141.39,3.5388]
[1728480058073,0.12502,141.41,141.37,5.76]
[1728480058381,0.12502,141.41,141.4,3.5387]
[1728480059673,3.66342,141.41,141.39,3.5388]
[1728480060286,0.12502,141.41,141.4,3.5387]
[1728480060473,0.12502,141.41,141.37,5.76]
[1728480060879,3.66342,141.41,141.39,3.5388]
[1728480061582,0.12502,141.41,141.4,3.5387]
[1728480061989,5.86502,141.47,141.4,16.98]
[1728480062186,3.5373,141.46,141.44,3.5375]
[1728480063087,3.5378,141.44,141.41,5.74]
[1728480063481,0.12502,141.47,141.41,5.74]
[1728480063688,16.98,141.45,141.39,5.74]
[1728480064188,3.5387,141.4,141.38,3.5391]
[1728480065682,16.98,141.45,141.36,16.98]
[1728480065887,3.5394,141.38,141.35,3.66482]
[1728480066193,16.98,141.41,141.35,0.12502]
[1728480066696,3.5392,141.39,141.36,3.5395]
[1728480066899,18.3653,141.41,141.35,0.12502]
[1728480067199,2.7451,141.4,141.35,0.12502]
[1728480067496,3.5396,141.37,141.35,0.12502]
[1728480067881,2.7451,141.4,141.35,0.12502]
[1728480068086,3.5393,141.38,141.35,3.66472]
[1728480069797,2.7451,141.4,141.35,0.12502]
[1728480069995,3.5397,141.36,141.35,0.12502]
[1728480070288,2.7451,141.4,141.35,0.12502]
[1728480070597,3.5396,141.37,141.35,0.12502]
[1728480070992,6.2838,141.4,141.35,0.12502]
[1728480071297,5.74,141.44,141.37,16.98]
[1728480071484,5.74,141.44,141.41,3.5384]
[1728480071686,3.5381,141.43,141.41,3.5384]
[1728480072286,9.2779,141.44,141.41,3.5384]
[1728480072491,5.74,141.44,141.4,3.5386]
[1728480072701,21.0046,141.46,141.4,3.5386]
[1728480072894,26.7446,141.46,141.4,3.5386]
[1728480073495,3.5381,141.43,141.4,3.5386]
[1728480074497,3.5381,141.43,141.41,3.5383]
[1728480075900,26.7446,141.46,141.38,16.98]
[1728480076097,3.5386,141.41,141.39,3.5389]
[1728480077498,3.5387,141.4,141.38,3.5391]
[1728480077691,16.98,141.45,141.36,22.72]
[1728480077994,3.5392,141.38,141.36,3.5396]
[1728480078198,16.98,141.42,141.35,0.12502]
[1728480078395,16.98,141.41,141.35,0.12502]
[1728480078800,2.706,141.4,141.35,0.12502]
[1728480079097,4.1205,141.4,141.35,0.12502]
[1728480079290,3.5395,141.37,141.35,0.12502]
[1728480079493,4.1205,141.4,141.35,0.12502]
[1728480079700,2.706,141.4,141.35,17.10502]
[1728480079995,5.74,141.42,141.35,17.10502]
[1728480080399,3.5388,141.4,141.37,3.5392]
[1728480080595,3.5388,141.4,141.35,17.10502]
[1728480080991,3.5388,141.4,141.37,3.5392]
[1728480081199,3.5388,141.4,141.35,17.10502]
[1728480081405,5.74,141.42,141.35,17.10502]
[1728480081589,5.74,141.42,141.37,16.98]
[1728480081793,2.706,141.43,141.37,22.72]
[1728480082190,2.706,141.43,141.37,5.74]
[1728480082903,2.706,141.43,141.38,3.5391]
[1728480083402,3.5385,141.41,141.38,3.5391]
[1728480084006,3.5385,141.41,141.39,3.5389]
[1728480084302,2.706,141.43,141.37,22.72]
[1728480084806,6.2442,141.43,141.4,3.5385]
[1728480085207,6.2442,141.43,141.41,3.5383]
[1728480085503,3.5385,141.41,141.37,5.74]
[1728480085808,2.706,141.43,141.39,3.5387]
[1728480086110,3.5383,141.42,141.39,3.5387]
[1728480086495,3.5383,141.42,141.37,22.72]
[1728480086899,1.4145,141.45,141.39,16.98]
[1728480087302,18.3945,141.45,141.37,22.72]
[1728480087902,18.3945,141.45,141.37,5.74]
[1728480087903,3.5389,141.39,141.37,5.74]
[1728480088503,2.7904,141.42,141.37,9.2793]
[1728480088801,3.5388,141.4,141.37,9.2793]
[1728480089307,3.5388,141.4,141.38,3.539]
[1728480090308,2.7904,141.42,141.38,3.539]
[1728480090608,3.5385,141.41,141.39,3.5388]
[1728480092011,6.3287,141.42,141.4,3.5386]
[1728480092313,1.4145,141.45,141.37,22.72]
[1728480092607,1.4145,141.45,141.4,3.5385]
[1728480093004,1.4145,141.45,141.41,3.5382]
[1728480093416,1.4145,141.45,141.39,16.98]
[1728480093607,3.5375,141.45,141.43,3.5379]
[1728480094312,6.3343,141.46,141.43,3.5379]
[1728480094606,2.797,141.46,141.42,3.5381]
[1728480094811,3.5376,141.45,141.42,3.5381]
[1728480096209,2.797,141.46,141.39,16.98]
[1728480096416,3.5381,141.43,141.39,22.72]
[1728480097017,3.5381,141.43,141.4,3.5386]
[1728480097207,3.5381,141.43,141.39,22.72]
[1728480098515,3.5381,141.43,141.41,3.5383]
[1728480102416,3.5378,141.44,141.41,3.5384]
[1728480104920,2.797,141.46,141.41,16.98]
[1728480105114,6.3343,141.46,141.41,16.98]
[1728480105721,6.3343,141.46,141.44,3.5376]
[1728480106817,2.797,141.46,141.45,3.5374]
[1728480107014,2.797,141.46,141.41,16.98]
[1728480107215,6.3344,141.46,141.42,3.538]
[1728480107522,2.797,141.46,141.41,16.98]
[1728480108024,3.5376,141.45,141.43,3.5379]
[1728480112815,2.797,141.46,141.41,16.98]
[1728480113017,2.797,141.46,141.4,5.74]
[1728480113221,2.797,141.46,141.39,16.98]
[1728480113425,3.5378,141.44,141.42,3.5381]
[1728480116030,2.797,141.46,141.39,22.72]
[1728480116337,3.5379,141.43,141.41,3.5383]
[1728480118135,3.5385,141.41,141.39,3.5388]
[1728480118436,2.797,141.46,141.38,22.72]
[1728480118944,3.538,141.43,141.41,3.5383]
[1728480119338,2.797,141.46,141.38,5.74]
[1728480119544,19.777,141.46,141.38,5.74]
[1728480120436,16.98,141.44,141.33,0.252]
[1728480120631,16.98,141.44,141.36,22.72]
[1728480121027,16.98,141.44,141.32,3.51579125]
[1728480121237,3.5392,141.38,141.36,3.5395]
[1728480121636,18.3337,141.43,141.35,57.76325454]
[1728480121939,3.5386,141.41,141.38,3.539]
[1728480122735,3.5383,141.42,141.38,3.539]
[1728480122936,1.3537,141.43,141.38,3.539]
[1728480123243,3.538,141.43,141.38,16.98]
[1728480123744,2.797,141.46,141.4,16.98]
[1728480124251,6.3342,141.46,141.4,20.43339001]
[1728480124438,0.12502,141.47,141.44,16.98]
[1728480126447,0.12502,141.47,141.46,3.5372]
[1728480127449,0.12502,141.47,141.43,5.72]
[1728480127942,3.5379,141.44,141.41,9.2583]
[1728480128344,3.5379,141.44,141.41,3.5383]
[1728480129140,0.12502,141.47,141.42,16.98]
[1728480129744,3.5374,141.46,141.43,3.5378]
[1728480130548,3.5374,141.46,141.4,26.21787356]
[1728480130749,0.12502,141.47,141.44,16.98]
[1728480130949,0.12502,141.47,141.44,22.7]
[1728480131351,0.12502,141.47,141.46,3.5372]
[1728480132247,3.536,141.51,141.46,16.98]
[1728480132453,0.12502,141.53,141.5,16.98]
[1728480133349,0.12502,141.53,141.48,22.7]
[1728480133556,3.66062,141.53,141.5,3.5361]
[1728480136243,0.12502,141.53,141.47,20.5169]
[1728480136548,0.12502,141.53,141.46,5.72]
[1728480136753,7.25262,141.53,141.46,5.72]
[1728480136953,16.98,141.52,141.43,16.98]
[1728480137154,7.25262,141.53,141.45,16.98]
[1728480137548,3.5363,141.5,141.47,3.5368]
[1728480138158,7.25262,141.53,141.45,16.98]
[1728480138353,7.25262,141.53,141.46,3.5371]
[1728480139458,7.25262,141.53,141.45,16.98]
[1728480139459,7.25262,141.53,141.47,3.5368]
[1728480139661,7.25262,141.53,141.47,16.98]
[1728480139950,3.536,141.51,141.47,16.98]
[1728480140163,3.536,141.51,141.49,3.5364]
[1728480140461,3.5357,141.52,141.47,16.98]
[1728480140661,0.12502,141.53,141.47,16.98]
[1728480140863,0.12502,141.53,141.49,16.98]
[1728480141161,3.66062,141.53,141.5,3.536]
[1728480142660,0.12502,141.53,141.5,3.536]
[1728480142857,3.5357,141.52,141.5,3.536]
[1728480143761,3.5359,141.51,141.49,3.5363]
[1728480144755,0.12502,141.53,141.49,3.5363]
[1728480144956,3.5358,141.52,141.49,3.5363]
[1728480145651,3.66062,141.53,141.5,3.536]
[1728480145850,0.12502,141.53,141.5,3.536]
[1728480147469,0.12502,141.53,141.49,16.98]
[1728480147655,0.12502,141.53,141.52,3.5357]
[1728480153066,0.12502,141.53,141.52,9.2557]
[1728480157858,0.12502,141.53,141.51,26.2357]
[1728480157859,3.66052,141.53,141.51,26.2357]
[1728480158068,0.12502,141.53,141.51,22.7]
[1728480158767,0.12502,141.53,141.52,3.5357]
[1728480163268,0.12502,141.53,141.51,26.2358]
[1728480163471,3.66052,141.53,141.51,26.2358]
[1728480164374,0.12502,141.53,141.51,26.2358]
[1728480165074,0.12502,141.53,141.52,3.5357]
[1728480165577,0.12502,141.59,141.51,22.7]
[1728480165781,0.12502,141.59,141.54,16.98]
[1728480166178,3.5342,141.58,141.55,3.5348]
[1728480166874,0.12502,141.59,141.54,16.98]
[1728480166875,3.5347,141.57,141.54,16.98]
[1728480167075,0.12502,141.59,141.53,16.98]
[1728480167276,5.84502,141.59,141.53,16.98]
[1728480167679,1.4519,141.58,141.53,16.98]
[1728480168083,3.5345,141.57,141.54,3.5352]
[1728480169575,1.4519,141.58,141.53,16.98]
[1728480169777,3.535,141.55,141.53,16.98]
[1728480170675,16.98,141.57,141.48,16.98]
[1728480170976,3.536,141.51,141.47,3.66172]
[1728480171281,8.4912,141.54,141.47,0.12502]
[1728480171674,3.5363,141.5,141.47,3.66192]
[1728480172678,3.5361,141.51,141.48,3.5366]
[1728480173282,3.5362,141.5,141.47,3.66182]
[1728480175786,8.4912,141.54,141.47,0.12502]
[1728480175986,16.98,141.53,141.47,0.12502]
[1728480176389,3.5367,141.48,141.47,0.12502]
[1728480177187,5.72,141.5,141.43,16.98]
[1728480177588,5.72,141.5,141.44,3.5376]
[1728480177589,3.5371,141.47,141.44,3.5376]
[1728480178290,3.5365,141.49,141.47,3.5369]
[1728480178490,1.4089,141.52,141.47,16.98]
[1728480178691,7.1289,141.52,141.47,16.98]
[1728480178991,3.5363,141.5,141.48,3.5367]
[1728480179593,3.5363,141.5,141.47,16.98]
[1728480179795,3.5363,141.5,141.47,20.5168]
[1728480180495,7.1289,141.52,141.47,20.5168]
[1728480180796,3.5366,141.49,141.46,3.537]
[1728480180991,7.1289,141.52,141.45,16.98]
[1728480181297,7.1289,141.52,141.48,3.5367]
[1728480181701,3.5363,141.5,141.47,20.5168]
[1728480181999,7.1289,141.52,141.45,16.98]
[1728480182798,7.1289,141.52,141.44,5.72]
[1728480182996,7.1289,141.52,141.44,3.5375]
[1728480183199,7.1289,141.52,141.43,16.98]
[1728480183497,3.5369,141.48,141.45,3.5372]
[1728480184191,3.5369,141.47,141.45,3.5372]
[1728480184388,1.4089,141.52,141.45,16.98]
[1728480184698,3.5364,141.5,141.45,16.98]
[1728480185002,5.72,141.51,141.45,16.98]
[1728480185201,3.5365,141.49,141.47,3.5368]
[1728480186097,3.5365,141.49,141.45,16.98]
[1728480186405,7.1289,141.52,141.44,5.72]
[1728480187403,3.5369,141.48,141.45,3.5373]
[1728480187594,3.5369,141.48,141.43,16.98]
[1728480187898,5.72,141.51,141.45,16.98]
[1728480188701,3.5368,141.48,141.46,3.5371]
[1728480189698,5.72,141.51,141.42,5.72]
[1728480190004,3.5371,141.47,141.44,3.5375]
[1728480190203,3.5371,141.47,141.43,16.98]
[1728480190505,3.5368,141.48,141.45,3.5372]
[1728480190801,3.5368,141.48,141.43,16.98]
[1728480192397,3.5368,141.48,141.44,3.5375]
[1728480192596,3.5368,141.48,141.43,16.98]
[1728480193309,3.59848748,141.5,141.43,16.98]
[1728480193705,3.59848748,141.5,141.42,5.72]
[1728480193900,3.5373,141.46,141.44,3.5376]
[1728480194502,3.537,141.47,141.43,16.98]
[1728480194799,5.72,141.49,141.43,16.98]
[1728480195505,3.537,141.47,141.45,3.5372]
[1728480196303,5.72,141.49,141.43,16.98]
[1728480196501,2.7622,141.48,141.43,16.98]
[1728480197409,3.5373,141.46,141.43,20.5177]
[1728480199407,3.5373,141.46,141.44,3.5375]
[1728480199610,2.7622,141.48,141.44,3.5375]
[1728480199911,3.537,141.47,141.43,16.98]
[1728480200110,2.7622,141.48,141.46,3.5371]
[1728480200799,2.7622,141.48,141.47,3.5369]
[1728480201001,2.7622,141.48,141.45,16.98]
[1728480201212,6.2989,141.48,141.45,16.98]
[1728480201910,2.7622,141.48,141.45,16.98]
[1728480202110,3.5369,141.47,141.43,16.98]
[1728480202806,2.7622,141.48,141.47,3.5369]
[1728480203705,5.72,141.49,141.44,16.98]
[1728480204106,3.537,141.47,141.43,5.72]
[1728480204308,5.72,141.49,141.41,0.12502]
[1728480204502,16.98,141.48,141.41,0.12502]
[1728480204703,3.5382,141.42,141.41,0.12502]
[1728480204916,22.7,141.44,141.36,16.98]
[1728480205212,2.6696,141.43,141.36,16.98]
[1728480205800,2.6696,141.43,141.38,3.5391]
[1728480205801,3.5386,141.41,141.38,3.5391]
[1728480206207,3.5391,141.39,141.36,3.5396]
[1728480206413,16.98,141.42,141.35,0.12502]
[1728480206710,5.72,141.4,141.35,0.12502]
[1728480207102,22.7,141.4,141.35,0.12502]
[1728480208318,22.7,141.4,141.35,3.66492]
[1728480209111,3.5391,141.39,141.35,3.66492]
[1728480209310,22.7,141.4,141.35,3.66492]
[1728480209911,5.72,141.39,141.37,3.5393]
[1728480210313,9.2588,141.4,141.37,3.5393]
[1728480211906,3.5389,141.39,141.37,3.5393]
[1728480212108,5.7,141.41,141.38,3.539]
[1728480212810,3.539,141.39,141.37,3.5394]
[1728480213013,5.7,141.41,141.37,3.5394]
[1728480213320,5.7,141.41,141.35,0.12502]
[1728480213819,16.98,141.4,141.35,0.12502]
[1728480215316,3.5395,141.37,141.35,0.12502]
[1728480216513,3.5395,141.37,141.35,3.66492]
[1728480216812,3.5393,141.38,141.35,3.66492]
[1728480217212,3.5396,141.37,141.35,3.66492]
[1728480217613,3.5396,141.37,141.35,0.12502]
[1728480220227,16.98,141.4,141.35,0.12502]
[1728480220411,3.5397,141.36,141.35,0.12502]
[1728480220615,5.7,141.39,141.35,0.12502]
[1728480222627,5.7,141.39,141.37,3.5392]
[1728480223224,9.239,141.39,141.37,3.5392]
[1728480223419,5.7,141.41,141.37,3.5392]
[1728480224023,3.5388,141.4,141.38,3.5391]
[1728480225426,18.3949,141.42,141.35,17.10502]
[1728480225427,1.4149,141.42,141.35,17.10502]
[1728480225628,3.5385,141.41,141.38,3.5389]
[1728480226324,3.5385,141.41,141.39,3.5389]
[1728480227233,3.5387,141.4,141.38,3.5391]
[1728480228925,7.1149,141.42,141.37,3.5393]
[1728480229120,3.539,141.39,141.37,3.5393]
[1728480230030,24.0949,141.42,141.35,17.10502]
[1728480230222,24.0949,141.42,141.38,3.5389]
[1728480230618,1.4149,141.42,141.35,17.10502]
[1728480230922,7.1149,141.42,141.35,17.10502]
[1728480231629,3.5388,141.4,141.37,3.5394]